bitfinex/quotes_SOLUSD_20240530
["timestamp","ask_amount","ask_price","bid_price","bid_amount"]
[1717093597204,2.1574,171.5,171.45,60.0]
[1717093598799,6.11618896,171.51,171.45,60.0]
[1717093599006,6.11618896,171.51,171.47,62.1577]
[1717093599205,6.11618896,171.51,171.47,60.0]
[1717093599206,8.27348896,171.51,171.47,60.0]
[1717093599613,6.11618896,171.51,171.47,60.0]
[1717093599803,6.11618896,171.51,171.47,62.1577]
[1717093600507,6.11618896,171.51,171.49,62.1574]
[1717093600840,0.03640662,171.51,171.49,60.0]
[1717093601006,6.11206779,171.51,171.49,60.0]
[1717093601755,6.11206779,171.51,171.49,62.1575]
[1717093602112,0.03640662,171.51,171.5,2.1574]
[1717093609137,0.03640662,171.51,171.49,60.0]
[1717093609546,0.03640662,171.51,171.48,2.1576]
[1717093609837,0.03640662,171.51,171.47,60.0]
[1717093610041,0.03640662,171.51,171.48,2.1576]
[1717093610351,0.03640662,171.51,171.47,62.1577]
[1717093611125,0.03640662,171.51,171.48,2.1576]
[1717093615048,0.03640662,171.51,171.47,60.0]
[1717093615245,6.20950662,171.51,171.47,62.1577]
[1717093615749,6.20950662,171.51,171.48,2.1576]
[1717093616635,6.20950662,171.51,171.47,62.1577]
[1717093616858,6.20950662,171.51,171.48,2.1576]
[1717093617256,8.36680662,171.51,171.47,60.0]
[1717093618637,6.20950662,171.51,171.47,62.1577]
[1717093621446,6.20950662,171.51,171.48,2.1576]
[1717093622463,6.20950662,171.51,171.47,62.1577]
[1717093624947,2.19370662,171.51,171.47,60.0]
[1717093625156,6.5973,171.5,171.47,60.0]
[1717093625858,2.1577,171.48,171.43,60.0]
[1717093626056,8.787,171.48,171.43,62.1582]
[1717093626244,2.1577,171.48,171.43,62.1582]
[1717093626439,2.1577,171.48,171.42,2.1583]
[1717093626794,6.2184,171.47,171.43,2.1582]
[1717093629058,0.03640662,171.51,171.46,60.0]
[1717093629244,6.33590662,171.51,171.46,62.1578]
[1717093629732,6.33590662,171.51,171.45,2.158]
[1717093629733,8.49320662,171.51,171.45,2.158]
[1717093630758,8.49320662,171.51,171.46,2.1579]
[1717093631144,8.49320662,171.51,171.45,2.158]
[1717093631558,2.1574,171.5,171.45,2.158]
[1717093631959,8.49320662,171.51,171.45,2.158]
[1717093632259,8.49320662,171.51,171.45,2.1579]
[1717093633269,8.3375,171.5,171.45,2.1579]
[1717093633771,6.1801,171.5,171.45,2.1579]
[1717093634469,8.3375,171.5,171.45,2.1579]
[1717093634767,6.1801,171.5,171.45,2.1579]
[1717093635267,8.3375,171.5,171.45,2.1579]
[1717093635645,0.03640662,171.51,171.48,60.0]
[1717093635843,0.03640662,171.51,171.48,62.1575]
[1717093636262,0.03640662,171.51,171.49,2.1575]
[1717093637673,0.03640662,171.51,171.48,62.1576]
[1717093637969,0.03640662,171.51,171.49,2.1575]
[1717093638865,0.03640662,171.51,171.5,2.1574]
[1717093639554,0.03640662,171.51,171.49,2.1575]
[1717093640444,0.03640662,171.51,171.5,60.0]
[1717093641976,0.03640662,171.51,171.5,62.1574]
[1717093642352,0.03640662,171.51,171.49,2.1575]
[1717093645465,7.35,171.5,171.49,2.1575]
[1717093645763,0.03640662,171.51,171.5,62.1574]
[1717093645963,0.03640662,171.51,171.5,60.0]
[1717093646365,7.38640662,171.51,171.5,60.0]
[1717093646557,7.38640662,171.51,171.49,2.1574]
[1717093646756,0.03640662,171.51,171.49,2.1574]
[1717093648759,0.03640662,171.51,171.48,62.1576]
[1717093650078,0.03640662,171.51,171.48,2.1576]
[1717093650257,0.03640662,171.51,171.47,2.1577]
[1717093650759,7.35,171.48,171.47,2.1577]
[1717093651805,7.35,171.48,171.46,62.1578]
[1717093651979,0.03640662,171.51,171.46,62.1578]
[1717093652189,6.37200662,171.51,171.46,62.1578]
[1717093653083,8.52930662,171.51,171.46,62.1578]
[1717093653379,7.35,171.47,171.46,62.1578]
[1717093653782,7.35,171.47,171.46,60.0]
[1717093654359,7.35,171.47,171.46,62.1579]
[1717093657853,7.35,171.47,171.46,60.0]
[1717093658770,7.35,171.47,171.46,62.1579]
[1717093660380,8.52930662,171.51,171.46,62.1579]
[1717093660381,6.37200662,171.51,171.46,60.0]
[1717093660584,7.35,171.47,171.46,60.0]
[1717093660775,7.35,171.47,171.46,62.1579]
[1717093661585,0.03640662,171.51,171.48,60.0]
[1717093661789,0.03640662,171.51,171.48,62.1575]
[1717093661993,7.35,171.49,171.48,62.1575]
[1717093662582,7.35,171.49,171.48,60.0]
[1717093664794,7.35,171.49,171.48,62.1576]
[1717093665472,7.35,171.49,171.48,60.0]
[1717093667002,7.35,171.49,171.48,62.1576]
[1717093667496,0.03640662,171.51,171.48,62.1576]
[1717093667687,0.03640662,171.51,171.49,2.1575]
[1717093667890,0.03640662,171.51,171.5,60.0]
[1717093668705,0.03640662,171.51,171.48,60.0]
[1717093669215,0.03640662,171.51,171.45,60.0]
[1717093669419,7.35,171.46,171.45,60.0]
[1717093669585,7.35,171.46,171.45,62.158]
[1717093670275,7.35,171.46,171.45,60.0]
[1717093670779,7.35,171.46,171.43,60.0]
[1717093670980,7.35,171.44,171.43,62.1583]
[1717093671402,7.35,171.44,171.43,60.0]
[1717093671891,7.35,171.44,171.43,62.1583]
[1717093672699,7.35,171.44,171.43,60.0]
[1717093673779,7.35,171.44,171.42,2.1584]
[1717093674019,2.1577,171.48,171.42,2.1584]
[1717093674709,6.08672555,171.49,171.39,60.0]
[1717093674887,6.08672555,171.49,171.37,8.75409986]
[1717093674888,2.1581,171.44,171.37,62.159]
[1717093675087,7.35,171.38,171.34,60.0]
[1717093675413,7.35,171.35,171.33,2.1595]
[1717093675620,2.1588,171.39,171.32,60.0]
[1717093675621,2.1588,171.39,171.32,62.1596]
[1717093675909,9.5092,171.36,171.3,62.1599]
[1717093676097,7.35,171.31,171.3,60.0]
[1717093676305,7.35,171.31,171.28,62.1601]
[1717093676495,7.35,171.31,171.29,2.16]
[1717093676823,7.35,171.36,171.28,62.1601]
[1717093676989,7.35,171.29,171.28,2.1601]
[1717093678914,7.35,171.29,171.27,2.1602]
[1717093679109,7.35,171.28,171.26,60.0]
[1717093679298,8.4592,171.33,171.26,62.1603]
[1717093680406,8.4592,171.33,171.26,2.1604]
[1717093680716,2.1597,171.32,171.26,2.1604]
[1717093682088,8.4592,171.33,171.26,2.1604]
[1717093682288,8.4592,171.33,171.24,60.0]
[1717093682588,6.2996,171.33,171.26,2.1603]
[1717093682806,8.25080635,171.32,171.25,2.1605]
[1717093683107,2.1599,171.31,171.24,2.1606]
[1717093684189,6.09110635,171.32,171.26,60.0]
[1717093684397,6.09110635,171.32,171.26,62.1603]
[1717093684605,8.25080635,171.32,171.26,60.0]
[1717093684800,8.25080635,171.32,171.21,8.644]
[1717093684801,2.1598,171.31,171.24,60.0]
[1717093685306,2.1599,171.3,171.24,62.1607]
[1717093685505,15.9935,171.3,171.24,2.1607]
[1717093685709,2.1601,171.29,171.23,2.1608]
[1717093686215,2.1601,171.29,171.22,62.1609]
[1717093686991,7.35,171.27,171.22,62.1609]
[1717093687192,13.4267,171.27,171.22,62.1609]
[1717093687393,13.4267,171.27,171.23,45.0]
[1717093688620,13.4267,171.27,171.22,2.1608]
[1717093688797,13.4267,171.27,171.21,2.161]
[1717093689295,6.3166,171.31,171.26,60.0]
[1717093689493,7.35,171.27,171.26,60.0]
[1717093689694,22.0847,171.35,171.28,60.0]
[1717093689931,24.2441,171.35,171.29,2.16]
[1717093690098,2.1594,171.34,171.26,60.0]
[1717093690302,22.0847,171.35,171.26,62.1604]
[1717093690303,7.35,171.27,171.26,62.1604]
[1717093690518,2.1596,171.33,171.27,2.1602]
[1717093690726,2.1594,171.34,171.28,2.1601]
[1717093691319,2.1594,171.34,171.28,47.1601]
[1717093691523,2.1594,171.34,171.28,2.1601]
[1717093691907,2.1594,171.34,171.29,60.0]
[1717093692118,2.1594,171.34,171.3,45.0]
[1717093692324,15.7681,171.35,171.3,45.0]
[1717093692325,23.9556,171.35,171.3,45.0]
[1717093692534,6.0282,171.35,171.3,47.1599]
[1717093692826,2.1594,171.34,171.3,45.0]
[1717093693323,8.499,171.32,171.3,45.0]
[1717093693516,2.1598,171.31,171.25,2.1605]
[1717093694003,6.3393,171.32,171.25,2.1605]
[1717093694335,2.1598,171.31,171.25,2.1605]
[1717093695021,2.1601,171.29,171.22,60.0]
[1717093695220,6.3393,171.32,171.22,62.1608]
[1717093695396,7.35,171.23,171.22,62.1608]
[1717093695923,7.35,171.23,171.22,2.1608]
[1717093696406,7.35,171.23,171.21,2.161]
[1717093696725,7.35,171.22,171.21,2.161]
[1717093697400,2.1603,171.27,171.21,2.161]
[1717093698923,4.3196,171.31,171.2,60.0]
[1717093698924,2.1602,171.28,171.22,2.1609]
[1717093699634,2.1603,171.27,171.21,2.161]
[1717093700430,8.25497347,171.27,171.21,2.161]
[1717093701124,8.25497347,171.27,171.22,2.1609]
[1717093701533,6.09467347,171.27,171.22,62.1609]
[1717093701728,7.35,171.23,171.22,62.1609]
[1717093702305,7.35,171.23,171.22,60.0]
[1717093702720,7.35,171.23,171.22,62.1609]
[1717093703029,7.35,171.23,171.22,60.0]
[1717093703620,7.35,171.23,171.2,62.1611]
[1717093703827,2.1604,171.26,171.2,62.1611]
[1717093704213,8.25497347,171.27,171.21,2.161]
[1717093704731,2.1604,171.26,171.21,2.161]
[1717093704926,2.1604,171.26,171.2,62.1611]
[1717093706128,2.1604,171.26,171.21,2.161]
[1717093706527,2.1601,171.29,171.23,2.1607]
[1717093707130,7.35,171.24,171.23,2.1607]
[1717093707632,7.35,171.24,171.2,60.0]
[1717093707633,7.35,171.24,171.22,2.1609]
[1717093707828,7.35,171.23,171.22,2.1609]
[1717093708531,7.35,171.23,171.22,62.1609]
[1717093708833,7.35,171.23,171.22,2.1609]
[1717093710036,7.35,171.23,171.18,60.0]
[1717093711631,2.1607,171.24,171.18,62.1614]
[1717093712246,2.1606,171.25,171.19,2.1613]
[1717093713712,2.1607,171.24,171.19,2.1613]
[1717093714137,2.1606,171.25,171.19,2.1613]
[1717093714336,7.35,171.2,171.19,2.1613]
[1717093715147,7.35,171.2,171.18,62.1614]
[1717093715310,7.35,171.19,171.18,62.1614]
[1717093715512,7.35,171.19,171.16,60.0]
[1717093715741,7.35,171.17,171.16,62.1617]
[1717093715926,7.35,171.17,171.16,2.1617]
[1717093716616,7.35,171.17,171.15,60.0]
[1717093716821,4.3213,171.25,171.15,60.0]
[1717093717019,2.161,171.22,171.16,2.1617]
[1717093717213,21.558,171.26,171.12,2.1621]
[1717093717214,2.1613,171.19,171.12,2.1621]
[1717093717417,4.3221,171.22,171.12,2.1621]
[1717093717615,2.1614,171.19,171.12,2.1621]
[1717093718431,2.1615,171.18,171.12,2.1621]
[1717093718749,15.126,171.23,171.09,10.9171]
[1717093718750,6.399,171.19,171.09,2.1625]
[1717093718918,2.1618,171.16,171.09,2.1625]
[1717093719118,2.1616,171.17,171.1,2.1624]
[1717093719322,7.35,171.11,171.1,62.1624]
[1717093720716,7.35,171.11,171.1,60.0]
[1717093721119,12.8833,171.19,171.13,62.162]
[1717093721120,8.5604,171.19,171.13,62.162]
[1717093721352,7.35,171.14,171.13,62.162]
[1717093723550,7.35,171.18,171.13,62.162]
[1717093723740,9.5114,171.18,171.11,60.0]
[1717093723923,9.5114,171.18,171.13,2.162]
[1717093724737,7.35,171.18,171.13,2.162]
[1717093726923,13.7824,171.18,171.12,2.1622]
[1717093727141,7.35,171.13,171.08,66.488]
[1717093727353,2.1615,171.17,171.11,62.1623]
[1717093727921,2.1615,171.17,171.11,2.1623]
[1717093728525,2.1615,171.17,171.12,2.1622]
[1717093728745,22.0258937,171.18,171.12,62.1622]
[1717093729342,2.1616,171.17,171.11,2.1622]
[1717093732374,7.35,171.12,171.08,60.0]
[1717093732537,2.162,171.14,171.08,62.1627]
[1717093732736,2.1618,171.15,171.09,2.1625]
[1717093733034,7.35,171.1,171.09,2.1625]
[1717093734038,7.35,171.1,171.06,10.8146]
[1717093734039,19.8643937,171.18,171.1,62.1624]
[1717093734246,2.1617,171.16,171.1,62.1624]
[1717093735362,2.1616,171.17,171.12,60.0]
[1717093735564,7.35,171.13,171.12,60.0]
[1717093737671,7.35,171.13,171.12,62.1621]
[1717093738469,7.35,171.13,171.08,60.0]
[1717093738644,4.3234,171.16,171.06,60.0]
[1717093738974,4.3234,171.16,171.08,2.1626]
[1717093738975,2.1621,171.13,171.08,2.1626]
[1717093739158,7.35,171.09,171.08,2.1626]
[1717093739337,7.35,171.09,171.06,60.0]
[1717093739534,4.3238,171.15,171.06,62.1628]
[1717093739535,2.1622,171.12,171.06,62.1628]
[1717093739846,2.1622,171.12,171.07,2.1628]
[1717093742549,2.1621,171.13,171.07,2.1628]
[1717093742763,2.1621,171.13,171.08,2.1627]
[1717093743266,2.1621,171.13,171.07,2.1628]
[1717093743861,2.1621,171.13,171.08,2.1627]
[1717093744440,2.1621,171.13,171.08,62.1627]
[1717093744663,2.162,171.14,171.08,62.1627]
[1717093745764,2.1621,171.13,171.08,60.0]
[1717093746647,2.1621,171.13,171.08,62.1626]
[1717093746964,2.1621,171.13,171.07,2.1628]
[1717093747554,2.1622,171.12,171.07,2.1628]
[1717093747953,2.1622,171.12,171.06,60.0]
[1717093747954,2.1622,171.12,171.06,62.1629]
[1717093748458,2.1622,171.12,171.07,2.1628]
[1717093748653,2.1622,171.12,171.06,62.1629]
[1717093749250,2.1622,171.12,171.07,2.1628]
[1717093752269,6.0834741,171.13,171.08,60.0]
[1717093752451,21.8608,171.17,171.08,60.0]
[1717093752644,6.08322596,171.15,171.08,60.0]
[1717093752849,2.162,171.14,171.08,62.1626]
[1717093753167,2.1621,171.13,171.08,62.1626]
[1717093753360,2.1621,171.13,171.08,2.1626]
[1717093753671,6.4437,171.12,171.07,2.1627]
[1717093753871,6.4437,171.12,171.08,2.1627]
[1717093754253,2.1621,171.13,171.07,62.1628]
[1717093754655,2.1621,171.13,171.08,2.1627]
[1717093755388,2.1621,171.13,171.07,2.1627]
[1717093755675,2.1622,171.12,171.07,2.1627]
[1717093755988,2.1624,171.1,171.05,2.163]
[1717093756147,4.3247,171.11,171.03,0.8192631]
[1717093756565,4.3247,171.11,171.03,60.8192631]
[1717093756771,2.1626,171.09,171.03,62.9825631]
[1717093757283,7.35,171.04,171.03,0.8192631]
[1717093759347,6.0929,171.07,171.03,0.8192631]
[1717093759570,8.2558,171.07,171.03,0.8192631]
[1717093761176,6.0929,171.07,171.03,0.8192631]
[1717093761372,2.1627,171.08,171.03,0.8192631]
[1717093761676,2.1627,171.08,171.03,1.98732873]
[1717093762262,2.1627,171.08,171.03,60.8192631]
[1717093762469,9.5126,171.09,171.04,2.1632]
[1717093762665,6.522,171.11,171.03,60.8192631]
[1717093762973,7.35,171.09,171.05,62.1631]
[1717093763677,7.35,171.06,171.05,62.1631]
[1717093763885,7.35,171.06,171.05,60.0]
[1717093764050,7.35,171.06,171.05,62.1631]
[1717093764874,7.35,171.06,171.05,60.0]
[1717093765078,7.35,171.06,171.05,62.1631]
[1717093765587,7.35,171.09,171.05,62.1631]
[1717093765875,2.1621,171.13,171.09,60.0]
[1717093766183,6.08578046,171.14,171.09,60.0]
[1717093766359,4.3232,171.17,171.09,60.0]
[1717093766561,2.1617,171.16,171.11,2.1623]
[1717093766857,2.162,171.14,171.09,62.1625]
[1717093767058,2.1619,171.15,171.09,62.1625]
[1717093767255,2.1619,171.15,171.1,2.1624]
[1717093769382,2.1619,171.15,171.11,60.0]
[1717093769588,6.08549314,171.17,171.13,60.0]
[1717093769794,7.35,171.14,171.13,62.162]
[1717093769966,6.08849237,171.2,171.14,2.1619]
[1717093770162,6.08849237,171.2,171.16,60.0]
[1717093770361,10.9507,171.25,171.16,60.0]
[1717093770671,10.41008466,171.25,171.18,60.0]
[1717093770873,10.41008466,171.25,171.16,60.0]
[1717093770874,6.08868466,171.25,171.16,60.0]
[1717093771877,6.08868466,171.25,171.18,60.0]
[1717093772882,6.08868466,171.25,171.18,62.1614]
[1717093773771,2.1609,171.23,171.18,60.0]
[1717093774365,2.1607,171.24,171.18,68.2631]
[1717093775175,2.1607,171.24,171.2,60.0]
[1717093776873,6.08868466,171.25,171.22,2.1609]
[1717093777068,20.9358,171.31,171.23,60.0]
[1717093777272,7.35,171.24,171.23,60.0]
[1717093777470,2.1607,171.24,171.19,62.1612]
[1717093777701,10.8006,171.29,171.2,2.1611]
[1717093778001,10.8006,171.29,171.21,60.0]
[1717093778184,2.1605,171.26,171.21,62.161]
[1717093778799,2.1606,171.25,171.2,2.1611]
[1717093779899,2.1606,171.25,171.21,2.161]
[1717093780468,2.1605,171.26,171.21,2.161]
[1717093782283,2.1603,171.27,171.22,2.1609]
[1717093782466,7.35,171.23,171.22,2.1609]
[1717093783209,2.1603,171.27,171.22,2.1609]
[1717093783506,9.5103,171.27,171.22,2.1609]
[1717093785410,7.35,171.23,171.21,62.161]
[1717093785615,2.1604,171.26,171.21,62.161]
[1717093785801,2.1603,171.27,171.22,2.1609]
[1717093786012,7.35,171.23,171.22,2.1609]
[1717093786822,7.35,171.23,171.21,62.161]
[1717093787019,2.1604,171.26,171.21,62.161]
[1717093788618,2.1604,171.26,171.21,2.161]
[1717093788827,7.35,171.22,171.2,2.1611]
[1717093789001,2.1606,171.25,171.2,2.1611]
[1717093789718,2.1606,171.25,171.21,2.161]
[1717093790093,2.1606,171.25,171.2,2.1612]
[1717093792617,7.35,171.27,171.21,2.161]
[1717093792618,2.1605,171.26,171.21,2.161]
[1717093795822,2.1605,171.25,171.2,2.1611]
[1717093796323,2.1605,171.25,171.21,2.161]
[1717093797925,2.1605,171.26,171.21,2.161]
[1717093798316,8.5816,171.26,171.21,2.161]
[1717093799019,12.9026,171.26,171.17,60.0]
[1717093799224,6.08515334,171.25,171.17,60.0]
[1717093799526,2.1608,171.23,171.19,2.1613]
[1717093800208,12.47385334,171.25,171.18,2.1614]
[1717093800406,6.08515334,171.25,171.18,2.1614]
[1717093800608,12.47385334,171.25,171.18,2.1614]
[1717093803210,28.25695334,171.25,171.14,2.1618]
[1717093803508,28.25695334,171.25,171.15,2.1618]
[1717093803509,8.7618,171.19,171.15,2.1618]
[1717093803712,6.6005,171.24,171.17,60.0]
[1717093803922,7.35,171.18,171.17,60.0]
[1717093804225,7.35,171.18,171.17,62.1615]
[1717093804410,2.161,171.22,171.17,62.1615]
[1717093804817,6.6005,171.24,171.18,2.1614]
[1717093806108,6.08515334,171.25,171.2,60.0]
[1717093806310,6.08515334,171.25,171.21,2.161]
[1717093806626,7.35,171.22,171.21,2.161]
[1717093807709,6.08641817,171.29,171.24,60.0]
[1717093807928,6.4309,171.33,171.24,60.0]
[1717093808225,6.08523269,171.32,171.25,2.1605]
[1717093808634,6.08523269,171.32,171.26,62.1604]
[1717093808946,6.08523269,171.32,171.27,2.1603]
[1717093809107,6.4309,171.33,171.27,2.1603]
[1717093809537,6.4309,171.33,171.26,62.1604]
[1717093809828,6.4309,171.33,171.21,17.55]
[1717093809829,2.16,171.3,171.25,2.1605]
[1717093810127,2.1601,171.29,171.24,2.1606]
[1717093810327,7.35,171.27,171.2,62.1611]
[1717093810529,7.35,171.27,171.19,2.1613]
[1717093810726,2.1606,171.25,171.19,2.1613]
[1717093811206,7.35,171.27,171.18,60.0]
[1717093811207,2.1605,171.26,171.2,2.1611]
[1717093811408,2.1606,171.25,171.2,2.1611]
[1717093812629,2.1607,171.24,171.19,2.1613]
[1717093813131,2.1608,171.23,171.16,60.0]
[1717093814123,2.1608,171.23,171.18,2.1613]
[1717093815925,6.2742,171.25,171.14,60.0]
[1717093815926,6.361,171.22,171.14,60.0]
[1717093816132,6.361,171.22,171.12,60.0]
[1717093816339,7.35,171.13,171.12,60.0]
[1717093817134,7.35,171.13,171.12,62.1622]
[1717093818758,7.35,171.13,171.11,2.1623]
[1717093819037,7.35,171.12,171.1,60.0]
[1717093819343,2.1617,171.17,171.11,2.1622]
[1717093819716,7.35,171.12,171.11,2.1622]
[1717093822838,2.1613,171.19,171.15,60.0]
[1717093823242,7.35,171.16,171.15,60.0]
[1717093823619,7.35,171.16,171.13,62.162]
[1717093823931,2.1613,171.19,171.14,2.1619]
[1717093823932,7.35,171.18,171.14,2.1619]
[1717093824335,7.35,171.18,171.15,60.0]
[1717093824543,7.35,171.18,171.13,62.162]
[1717093825728,7.35,171.18,171.15,60.0]
[1717093826844,2.1612,171.2,171.15,60.0]
[1717093827232,8.3218,171.24,171.18,60.0]
[1717093827548,2.1606,171.25,171.2,62.1612]
[1717093827732,7.35,171.21,171.18,62.1613]
[1717093827934,2.1608,171.23,171.18,62.1613]
[1717093828456,7.35,171.19,171.17,2.1615]
[1717093828751,2.1609,171.22,171.17,2.1615]
[1717093830052,7.35,171.18,171.15,2.1617]
[1717093830354,6.0907,171.23,171.12,10.8108]
[1717093830355,10.8053,171.21,171.12,62.1621]
[1717093830530,2.1614,171.19,171.14,62.1619]
[1717093830930,2.1612,171.2,171.15,2.1618]
[1717093831130,7.35,171.18,171.15,2.1618]
[1717093831331,7.35,171.18,171.14,2.1619]
[1717093831938,9.5114,171.18,171.12,60.0]
[1717093832130,9.5114,171.18,171.13,2.162]
[1717093832336,2.1614,171.18,171.13,2.162]
[1717093835148,19.6385,171.22,171.12,60.0]
[1717093835149,19.6385,171.22,171.14,2.1619]
[1717093836050,19.6385,171.22,171.12,2.1621]
[1717093836051,15.3165,171.22,171.12,2.1621]
[1717093836434,2.1615,171.18,171.12,2.1621]
[1717093836642,2.1615,171.18,171.13,62.162]
[1717093837236,4.3223,171.21,171.13,60.0]
[1717093837437,4.3223,171.21,171.13,2.162]
[1717093838038,6.08508991,171.2,171.13,2.162]
[1717093838258,6.08508991,171.2,171.12,2.1621]
[1717093838763,4.323,171.18,171.1,2.1624]
[1717093839059,2.1618,171.15,171.1,2.1624]
[1717093839267,2.1614,171.18,171.1,4.3249]
[1717093839431,6.08508991,171.2,171.1,4.3249]
[1717093839432,6.08508991,171.2,171.14,60.0]
[1717093839632,2.1615,171.18,171.13,2.162]
[1717093843157,2.1614,171.19,171.14,2.1619]
[1717093844062,2.1614,171.19,171.15,60.0]
[1717093845475,2.1614,171.18,171.13,62.162]
[1717093845759,2.1614,171.18,171.14,2.1619]
[1717093845939,2.1614,171.18,171.13,62.162]
[1717093847060,2.1614,171.18,171.14,2.1619]
[1717093847262,2.1614,171.18,171.13,62.162]
[1717093847761,2.1614,171.18,171.15,60.0]
[1717093848441,2.1614,171.18,171.13,62.162]
[1717093850258,21.40244625,171.22,171.16,60.0]
[1717093850466,6.08594625,171.22,171.18,60.0]
[1717093850641,2.1609,171.23,171.18,62.1614]
[1717093851048,2.1609,171.23,171.2,60.0]
[1717093851247,2.1607,171.24,171.2,60.0]
[1717093851543,2.1608,171.23,171.2,60.0]
[1717093852553,2.1609,171.22,171.2,60.0]
[1717093852759,2.1609,171.22,171.18,62.1614]
[1717093853062,7.38,171.19,171.17,2.1615]
[1717093853268,7.38,171.18,171.17,2.1615]
[1717093853641,7.38,171.18,171.16,62.1616]
[1717093853853,2.161,171.21,171.16,62.1616]
[1717093854159,7.38,171.17,171.16,62.1616]
[1717093856765,2.161,171.22,171.17,2.1615]
[1717093856970,2.161,171.22,171.18,2.1614]
[1717093857148,2.1608,171.23,171.19,60.0]
[1717093857747,2.1609,171.22,171.19,60.0]
[1717093858351,2.1608,171.23,171.19,60.0]
[1717093859371,2.1609,171.22,171.18,2.1614]
[1717093860880,2.1612,171.2,171.17,60.0]
[1717093861090,2.1611,171.21,171.17,60.0]
[1717093861381,8.23831494,171.24,171.19,60.0]
[1717093861564,2.1608,171.24,171.19,60.0]
[1717093861890,2.1606,171.25,171.21,60.0]
[1717093862252,2.1607,171.24,171.21,60.0]
[1717093862678,2.1607,171.24,171.15,26.197]
[1717093862679,2.1608,171.23,171.19,60.0]
[1717093863482,2.1608,171.23,171.18,2.1613]
[1717093863794,2.1609,171.22,171.17,62.1615]
[1717093863958,2.1609,171.22,171.17,2.1615]
[1717093864159,2.1609,171.22,171.17,62.1615]
[1717093864361,2.1609,171.22,171.18,2.1614]
[1717093864569,2.1609,171.22,171.17,62.1615]
[1717093865579,17.4049,171.26,171.18,2.1614]
[1717093865580,8.3719,171.23,171.18,2.1614]
[1717093866078,2.1606,171.25,171.2,2.1611]
[1717093866284,2.1607,171.24,171.2,62.1611]
[1717093866477,7.38,171.21,171.2,62.1611]
[1717093867065,7.38,171.21,171.2,60.0]
[1717093870786,7.38,171.21,171.19,2.1613]
[1717093870974,2.1607,171.24,171.19,2.1613]
[1717093871282,2.1607,171.24,171.2,2.1611]
[1717093871681,2.1607,171.24,171.19,2.1612]
[1717093872057,6.3717,171.27,171.19,2.1612]
[1717093872265,2.1608,171.23,171.19,2.1612]
[1717093872985,8.5881,171.24,171.19,2.1612]
[1717093873174,5.0,171.2,171.19,2.1612]
[1717093873375,5.0,171.2,171.18,62.1614]
[1717093873891,5.0,171.2,171.19,2.1613]
[1717093874795,12.38,171.2,171.19,2.1613]
[1717093878283,12.38,171.2,171.18,62.1614]
[1717093878591,5.0,171.2,171.18,2.1614]
[1717093878789,7.38,171.19,171.17,2.1615]
[1717093878992,5.0,171.2,171.16,62.1616]
[1717093879189,7.38,171.17,171.16,62.1616]
[1717093880109,7.38,171.17,171.15,2.1617]
[1717093880315,5.0,171.2,171.13,2.162]